[Event "Couzeix rapide 9 rondes cadences multiples"]
[Site "Couzeix Chess Club, France"]
[Date "2019.03.10"]
[Round "9.1"]
[White "Jackson, Edgar"]
[Black "Girel, Joseph"]
[Result "0-1"]
[TimeControl "5'+10''pm,  7'+10''pm, 10'+10''pm,"]
[WhiteElo "1701"]
[BlackElo "2220"]

1. d4 {[%clk 00:10:19]} Nf6 {[%clk 00:10:18]} {[%emt 00:00:03]} 2. Bg5 {[%clk
00:10:28]} d5 {[%clk 00:10:26]} {[%emt 00:00:02]} 3. Bxf6 {[%clk 00:10:36]}
{[%emt 00:00:02]} exf6 {[%clk 00:10:30]} {[%emt 00:00:06]} 4. g3 {[%clk
00:10:43]} {[%emt 00:00:02]} c6 {[%clk 00:10:38]} {[%emt 00:00:02]} 5. Bg2
{[%clk 00:10:52]} Bd6 {[%clk 00:10:47]} {[%emt 00:00:01]} 6. e3 {[%clk
00:11:01]} {[%emt 00:00:02]} O-O {[%clk 00:10:55]} {[%emt 00:00:02]} 7. Ne2
{[%clk 00:11:10]} Bf5 {[%clk 00:11:00]} {[%emt 00:00:05]} 8. Nd2 {[%clk
00:11:08]} {[%emt 00:00:12]} Nd7 {[%clk 00:11:08]} {[%emt 00:00:02]} 9. O-O
{[%clk 00:11:16]} {[%emt 00:00:02]} Re8 {[%clk 00:11:17]} {[%emt 00:00:01]} 10.
b3 {[%clk 00:11:13]} {[%emt 00:00:13]} Rc8 {[%clk 00:11:24]} {[%emt 00:00:03]}
11. c4 {[%clk 00:11:21]} {[%emt 00:00:03]} dxc4 {[%clk 00:11:15]} {[%emt
00:00:19]} 12. bxc4 {[%clk 00:11:29]} {[%emt 00:00:02]} Bd3 {[%clk 00:10:59]}
{[%emt 00:00:26]} 13. Re1 {[%clk 00:11:18]} {[%emt 00:00:21]} Bb4 {[%clk
00:10:21]} {[%emt 00:00:48]} 14. c5 {[%clk 00:11:03]} {[%emt 00:00:25]} Qa5
{[%clk 00:10:26]} {[%emt 00:00:05]} 15. Nb3 {[%clk 00:11:00]} {[%emt 00:00:12]}
Qa6 {[%clk 00:10:34]} {[%emt 00:00:02]} 16. Nf4 {[%clk 00:07:42]} {[%emt
00:03:27]} Bc4 {[%clk 00:10:30]} {[%emt 00:00:15]} 17. Nd2 {[%clk 00:07:13]}
{[%emt 00:00:39]} b6 {[%clk 00:09:56]} {[%emt 00:00:46]} 18. Nxc4 {[%clk
00:06:35]} {[%emt 00:00:48]} Qxc4 {[%clk 00:10:01]} {[%emt 00:00:05]} 19. Bf1
{[%clk 00:06:23]} {[%emt 00:00:21]} Qc3 {[%clk 00:10:09]} {[%emt 00:00:03]} 20.
Qc1 {[%clk 00:06:02]} {[%emt 00:00:31]} Qxe1 {[%clk 00:10:12]} {[%emt
00:00:07]} 21. Qxe1 {[%clk 00:06:04]} {[%emt 00:00:08]} Bxe1 {[%clk 00:10:21]}
{[%emt 00:00:02]} 22. Rxe1 {[%clk 00:06:11]} {[%emt 00:00:03]} bxc5 {[%clk
00:10:30]} 23. d5 {[%clk 00:05:57]} {[%emt 00:00:24]} cxd5 {[%clk 00:10:30]}
{[%emt 00:00:09]} 24. Nxd5 {[%clk 00:06:05]} {[%emt 00:00:02]} Ne5 {[%clk
00:10:40]} 25. Bg2 {[%clk 00:06:05]} {[%emt 00:00:10]} c4 {[%clk 00:10:49]}
{[%emt 00:00:02]} 26. Be4 {[%clk 00:05:25]} {[%emt 00:00:50]} Kf8 {[%clk
00:10:40]} {[%emt 00:00:19]} 27. Kg2 {[%clk 00:04:50]} {[%emt 00:00:45]} Red8
{[%clk 00:10:39]} {[%emt 00:00:11]} 28. Rb1 {[%clk 00:03:17]} {[%emt 00:01:43]}
g6 {[%clk 00:10:21]} {[%emt 00:00:28]} 29. Rb7 {[%clk 00:03:11]} {[%emt
00:00:16]} f5 {[%clk 00:10:24]} {[%emt 00:00:07]} 0-1

[Event "Couzeix rapide 9 rondes cadences multiples"]
[Site "Couzeix Chess Club, France"]
[Date "2019.03.10"]
[Round "9.2"]
[White "Jackson, Thomas"]
[Black "Mace, Emmanuel"]
[Result "1-0"]
[TimeControl "5'+10''pm,  7'+10''pm, 10'+10''pm,"]
[WhiteElo "2106"]
[BlackElo "1724"]

1. d4 {[%clk 00:10:18]} {[%emt 00:00:02]} d5 {[%clk 00:10:20]} {[%emt
00:00:01]} 2. c4 {[%clk 00:10:27]} c6 {[%clk 00:10:29]} 3. Nc3 {[%clk
00:10:35]} {[%emt 00:00:01]} Nf6 {[%clk 00:10:38]} 4. Nf3 {[%clk 00:10:44]} a6
{[%clk 00:10:48]} 5. c5 {[%clk 00:10:51]} {[%emt 00:00:03]} Nbd7 {[%clk
00:10:55]} {[%emt 00:00:02]} 6. Bf4 {[%clk 00:11:00]} {[%emt 00:00:01]} Nh5
{[%clk 00:11:03]} {[%emt 00:00:02]} 7. e3 {[%clk 00:11:09]} Nxf4 {[%clk
00:11:11]} {[%emt 00:00:02]} 8. exf4 {[%clk 00:11:18]} {[%emt 00:00:01]} f6
{[%clk 00:11:08]} {[%emt 00:00:13]} 9. Bd3 {[%clk 00:10:23]} {[%emt 00:01:06]}
g6 {[%clk 00:11:07]} {[%emt 00:00:11]} 10. f5 {[%clk 00:10:21]} {[%emt
00:00:12]} g5 {[%clk 00:10:57]} {[%emt 00:00:19]} 11. Nxg5 {[%clk 00:10:30]}
{[%emt 00:00:02]} h5 {[%clk 00:10:35]} {[%emt 00:00:31]} 12. Be2 {[%clk
00:09:54]} {[%emt 00:00:47]} Qa5 {[%clk 00:10:13]} {[%emt 00:00:32]} 13. Bxh5+
{[%clk 00:10:00]} {[%emt 00:00:03]} Qd8 {[%emt 00:00:15]} 1-0

[Event "Couzeix rapide 9 rondes cadences multiples"]
[Site "Couzeix Chess Club, France"]
[Date "2019.03.10"]
[Round "9.3"]
[White "Lougnon, Florian"]
[Black "Boisseau, David"]
[Result "1/2-1/2"]
[TimeControl "5'+10''pm,  7'+10''pm, 10'+10''pm,"]
[WhiteElo "1783"]
[BlackElo "1803"]

1. b3 {[%clk 00:10:19]} e6 {[%clk 00:10:14]} {[%emt 00:00:07]} 2. Bb2 {[%clk
00:10:28]} d5 {[%clk 00:10:23]} {[%emt 00:00:02]} 3. e3 {[%clk 00:10:37]} f5
{[%clk 00:10:31]} 4. f4 {[%clk 00:10:39]} {[%emt 00:00:08]} Nf6 {[%clk
00:10:40]} {[%emt 00:00:01]} 5. Nf3 {[%clk 00:10:48]} {[%emt 00:00:01]} Bd6
{[%clk 00:10:48]} {[%emt 00:00:01]} 6. Be2 {[%clk 00:10:49]} {[%emt 00:00:09]}
c6 {[%clk 00:10:53]} {[%emt 00:00:05]} 7. O-O {[%clk 00:10:58]} {[%emt
00:00:01]} O-O {[%clk 00:11:02]} {[%emt 00:00:01]} 8. d3 {[%clk 00:11:01]}
{[%emt 00:00:06]} Bd7 {[%clk 00:11:09]} {[%emt 00:00:03]} 9. Ne5 {[%clk
00:11:02]} {[%emt 00:00:09]} Be8 {[%clk 00:11:10]} {[%emt 00:00:09]} 10. Nd2
{[%clk 00:11:09]} {[%emt 00:00:03]} Nbd7 {[%clk 00:11:19]} {[%emt 00:00:02]} 11.
Ndf3 {[%clk 00:11:11]} {[%emt 00:00:08]} Bh5 {[%clk 00:11:06]} {[%emt
00:00:22]} 12. Nxd7 {[%clk 00:11:14]} {[%emt 00:00:08]} Nxd7 {[%clk 00:11:14]}
{[%emt 00:00:02]} 13. Ng5 {[%clk 00:11:14]} {[%emt 00:00:09]} Bxe2 {[%clk
00:11:20]} {[%emt 00:00:04]} 14. Qxe2 {[%clk 00:11:24]} Qe7 {[%clk 00:11:24]}
{[%emt 00:00:05]} 15. Qh5 {[%clk 00:11:09]} {[%emt 00:00:24]} h6 {[%clk
00:11:17]} {[%emt 00:00:17]} 16. Nf3 {[%clk 00:11:19]} Nf6 {[%clk 00:11:20]}
{[%emt 00:00:07]} 17. Qg6 {[%clk 00:11:00]} {[%emt 00:00:28]} Qf7 {[%clk
00:10:39]} {[%emt 00:00:52]} 18. Qxf7+ {[%clk 00:11:02]} {[%emt 00:00:08]} Kxf7
{[%clk 00:10:44]} {[%emt 00:00:04]} 19. h3 {[%clk 00:11:11]} {[%emt 00:00:02]}
Rg8 {[%clk 00:10:44]} {[%emt 00:00:10]} 20. Ne5+ {[%clk 00:11:19]} {[%emt
00:00:02]} Bxe5 {[%clk 00:10:52]} {[%emt 00:00:02]} 21. Bxe5 {[%clk 00:11:28]}
{[%emt 00:00:01]} g5 {[%clk 00:10:52]} {[%emt 00:00:10]} 22. Kh2 {[%clk
00:11:25]} {[%emt 00:00:14]} g4 {[%clk 00:10:58]} {[%emt 00:00:03]} 23. Bxf6
{[%clk 00:11:25]} {[%emt 00:00:10]} Kxf6 {[%clk 00:11:07]} {[%emt 00:00:02]} 24.
g3 {[%clk 00:11:25]} {[%emt 00:00:09]} h5 {[%clk 00:11:10]} {[%emt 00:00:07]}
25. h4 {[%clk 00:11:34]} {[%emt 00:00:01]} Rge8 {[%clk 00:10:59]} {[%emt
00:00:21]} 26. Rfe1 {[%clk 00:11:42]} {[%emt 00:00:02]} Re7 {[%clk 00:11:05]}
{[%emt 00:00:05]} 27. Kg2 {[%clk 00:11:39]} {[%emt 00:00:12]} Rae8 {[%clk
00:11:13]} {[%emt 00:00:01]} 28. e4 {[%clk 00:11:44]} {[%emt 00:00:06]} b6
{[%clk 00:11:05]} {[%emt 00:00:18]} 29. e5+ {[%clk 00:11:50]} {[%emt 00:00:03]}
Kf7 {[%clk 00:11:12]} {[%emt 00:00:03]} 30. Kf2 {[%clk 00:12:00]} {[%emt
00:00:01]} c5 {[%clk 00:11:15]} {[%emt 00:00:07]} 31. c4 {[%clk 00:11:52]}
{[%emt 00:00:17]} d4 {[%clk 00:11:20]} {[%emt 00:00:05]} 32. Reb1 {[%clk
00:12:00]} {[%emt 00:00:02]} Rb7 {[%clk 00:11:19]} {[%emt 00:00:11]} 33. b4
{[%clk 00:11:58]} {[%emt 00:00:13]} Rc8 {[%clk 00:11:15]} {[%emt 00:00:13]} 34.
b5 {[%clk 00:12:01]} {[%emt 00:00:08]} Ra8 {[%clk 00:11:12]} {[%emt 00:00:13]}
35. a4 {[%clk 00:12:07]} {[%emt 00:00:04]} Ke7 {[%clk 00:10:50]} {[%emt
00:00:32]} 36. Ke2 {[%clk 00:12:17]} Kd7 {[%clk 00:10:59]} 37. Kd2 {[%clk
00:12:26]} Kc7 {[%clk 00:11:07]} {[%emt 00:00:02]} 38. Kc2 {[%clk 00:12:35]}
{[%emt 00:00:01]} Rbb8 {[%clk 00:11:15]} {[%emt 00:00:02]} 39. Ra2 {[%clk
00:12:35]} {[%emt 00:00:10]} Kb7 {[%clk 00:11:14]} {[%emt 00:00:11]} 40. Rba1
{[%clk 00:12:44]} Kc7 {[%clk 00:11:16]} {[%emt 00:00:08]} 41. a5 {[%clk
00:12:47]} {[%emt 00:00:07]} Kb7 {[%clk 00:11:25]} 42. Kb3 {[%clk 00:12:57]}
{[%emt 00:00:01]} Rd8 {[%clk 00:11:27]} {[%emt 00:00:08]} 43. axb6 {[%clk
00:12:20]} {[%emt 00:00:47]} axb6 {[%clk 00:11:36]} 44. Ra6 {[%clk 00:12:29]}
{[%emt 00:00:01]} Rdb8 {[%clk 00:11:07]} {[%emt 00:00:39]} 45. R1a4 {[%clk
00:12:24]} {[%emt 00:00:15]} Rc8 {[%emt 00:00:23]} 1/2-1/2

[Event "Couzeix rapide 9 rondes cadences multiples"]
[Site "Couzeix Chess Club, France"]
[Date "2019.03.10"]
[Round "9.4"]
[White "Seddik, Houssem"]
[Black "Besse, Florian"]
[Result "1-0"]
[TimeControl "5'+10''pm,  7'+10''pm, 10'+10''pm,"]
[WhiteElo "1492"]
[BlackElo "1762"]

1. e4 {[%clk 00:10:19]} e6 {[%clk 00:10:16]} {[%emt 00:00:04]} 2. d3 {[%clk
00:10:28]} d5 {[%clk 00:10:17]} {[%emt 00:00:09]} 3. Nd2 {[%clk 00:10:36]}
{[%emt 00:00:02]} Nf6 {[%clk 00:10:13]} {[%emt 00:00:15]} 4. Ngf3 {[%clk
00:10:42]} {[%emt 00:00:03]} Be7 {[%clk 00:09:46]} {[%emt 00:00:37]} 5. g3
{[%clk 00:10:50]} {[%emt 00:00:02]} Nbd7 {[%clk 00:09:08]} {[%emt 00:00:47]} 6.
Bg2 {[%clk 00:10:50]} {[%emt 00:00:11]} O-O {[%clk 00:09:03]} {[%emt 00:00:14]}
7. O-O {[%clk 00:10:54]} {[%emt 00:00:06]} c6 {[%clk 00:08:52]} {[%emt
00:00:21]} 8. Re1 {[%clk 00:10:42]} {[%emt 00:00:23]} Qc7 {[%clk 00:08:18]}
{[%emt 00:00:44]} 9. Nf1 {[%clk 00:10:27]} {[%emt 00:00:24]} dxe4 {[%clk
00:07:52]} {[%emt 00:00:36]} 10. dxe4 {[%clk 00:10:16]} {[%emt 00:00:22]} Rd8
{[%clk 00:07:55]} {[%emt 00:00:06]} 11. Qe2 {[%clk 00:10:00]} {[%emt 00:00:26]}
Ne5 {[%clk 00:06:47]} {[%emt 00:01:18]} 12. h4 {[%clk 00:08:41]} {[%emt
00:01:29]} Nxf3+ {[%clk 00:05:00]} {[%emt 00:01:57]} 13. Qxf3 {[%clk 00:08:08]}
{[%emt 00:00:43]} e5 {[%clk 00:05:09]} {[%emt 00:00:01]} 14. Nh2 {[%clk
00:08:00]} {[%emt 00:00:17]} Be6 {[%clk 00:04:52]} {[%emt 00:00:28]} 15. Bg5
{[%clk 00:07:05]} {[%emt 00:01:05]} Qb6 {[%clk 00:04:46]} {[%emt 00:00:15]} 16.
b3 {[%clk 00:07:05]} {[%emt 00:00:11]} Rd7 {[%clk 00:04:38]} {[%emt 00:00:18]}
17. Bxf6 {[%clk 00:06:16]} {[%emt 00:01:00]} Bxf6 {[%clk 00:04:44]} {[%emt
00:00:03]} 18. Ng4 {[%clk 00:06:24]} {[%emt 00:00:02]} Bxg4 {[%clk 00:04:48]}
{[%emt 00:00:05]} 19. Qxg4 {[%clk 00:06:33]} {[%emt 00:00:01]} Rad8 {[%clk
00:04:56]} {[%emt 00:00:01]} 20. Rad1 {[%clk 00:05:56]} {[%emt 00:00:48]} Rd2
{[%clk 00:05:03]} {[%emt 00:00:03]} 21. Rxd2 {[%clk 00:04:28]} {[%emt
00:01:38]} Rxd2 {[%clk 00:05:11]} {[%emt 00:00:02]} 22. Qc8+ {[%clk 00:04:30]}
{[%emt 00:00:08]} Rd8 {[%clk 00:05:08]} {[%emt 00:00:14]} 23. Qf5 {[%clk
00:04:36]} {[%emt 00:00:04]} Qd4 {[%clk 00:05:04]} {[%emt 00:00:14]} 24. Bf3
{[%clk 00:04:00]} {[%emt 00:00:47]} Qc3 {[%clk 00:04:57]} {[%emt 00:00:15]} 25.
Re2 {[%clk 00:04:03]} {[%emt 00:00:08]} Qa1+ {[%clk 00:03:48]} {[%emt
00:01:20]} 26. Kg2 {[%clk 00:04:12]} Qxa2 {[%clk 00:03:46]} {[%emt 00:00:11]}
27. h5 {[%clk 00:04:04]} {[%emt 00:00:18]} Qa5 {[%clk 00:03:49]} {[%emt
00:00:06]} 28. h6 {[%clk 00:03:49]} {[%emt 00:00:26]} Rd2 {[%clk 00:03:25]}
{[%emt 00:00:34]} 29. hxg7 {[%clk 00:02:06]} {[%emt 00:01:53]} Rxe2 {[%clk
00:03:26]} {[%emt 00:00:08]} 30. Bxe2 {[%clk 00:02:05]} {[%emt 00:00:11]} Qd8
{[%clk 00:03:32]} {[%emt 00:00:04]} 31. Bd3 {[%clk 00:01:32]} {[%emt 00:00:42]}
Bxg7 {[%clk 00:03:28]} {[%emt 00:00:14]} 32. f4 {[%clk 00:01:41]} {[%emt
00:00:01]} exf4 {[%clk 00:03:36]} {[%emt 00:00:02]} 33. gxf4 {[%clk 00:01:50]}
Qh4 {[%clk 00:02:07]} {[%emt 00:01:39]} 34. Bc4 {[%clk 00:01:30]} {[%emt
00:00:31]} Qe7 {[%clk 00:02:07]} {[%emt 00:00:10]} 35. e5 {[%clk 00:01:18]}
{[%emt 00:00:23]} b5 {[%clk 00:01:43]} {[%emt 00:00:34]} 36. Bd3 {[%clk
00:01:27]} {[%emt 00:00:01]} Qe6 {[%clk 00:01:22]} {[%emt 00:00:30]} 37. Qxh7+
{[%clk 00:01:33]} {[%emt 00:00:04]} Kf8 {[%clk 00:01:30]} {[%emt 00:00:03]} 38.
Qh4 {[%clk 00:01:12]} {[%emt 00:00:30]} Qe7 {[%clk 00:01:19]} {[%emt 00:00:21]}
39. Qg4 {[%clk 00:00:54]} {[%emt 00:00:27]} Qd8 {[%clk 00:01:22]} {[%emt
00:00:07]} 40. Qf3 {[%clk 00:00:32]} {[%emt 00:00:33]} Qd7 {[%clk 00:01:24]}
{[%emt 00:00:08]} 41. Be4 {[%clk 00:00:21]} {[%emt 00:00:21]} Qd2+ {[%clk
00:01:26]} {[%emt 00:00:07]} 42. Kg3 {[%clk 00:00:28]} {[%emt 00:00:03]} Qe1+
{[%clk 00:01:35]} {[%emt 00:00:02]} 43. Kh3 {[%clk 00:00:33]} {[%emt 00:00:04]}
c5 {[%clk 00:01:35]} {[%emt 00:00:10]} 44. Qd3 {[%clk 00:00:36]} {[%emt
00:00:07]} Bh6 {[%clk 00:01:30]} {[%emt 00:00:15]} 45. Qd6+ {[%clk 00:00:12]}
{[%emt 00:00:35]} Ke8 {[%clk 00:01:11]} {[%emt 00:00:28]} 46. Bc6# {[%clk
00:00:20]} {[%emt 00:00:03]} 1-0